fUSD/lending_fUSD_20250109
["ID","MTS","AMOUNT","RATE_DAILY","PERIOD"]
[348269921,1736428254317,-500.0,0.00010271,2]
[348269922,1736428254326,-500.0,0.00010271,2]
[348269923,1736428254335,-520.83,0.00010271,2]
[348269924,1736428254346,-675.372354,0.00010271,2]
[348269925,1736428254356,-675.372354,0.00010271,2]
[348269926,1736428254365,-500.0,0.00010271,2]
[348269927,1736428254375,-303.47,0.00010271,2]
[348269928,1736428254384,-532.86,0.00010271,2]
[348269929,1736428254394,-500.0,0.00010271,2]
[348269930,1736428254403,-364.64,0.00010271,2]
[348269931,1736428254412,-583.24793663,0.00010271,2]
[348269932,1736428254422,-206.73,0.00010271,2]
[348269933,1736428254431,-500.0,0.00010271,2]
[348269934,1736428254441,-500.0,0.00010271,2]
[348269935,1736428254450,-296.12644785,0.00010271,2]
[348269936,1736428254460,-500.0,0.00010271,2]
[348269937,1736428254469,-500.0,0.00010271,2]
[348269938,1736428254479,-500.0,0.00010271,2]
[348269939,1736428254531,-500.0,0.00010271,2]
[348269940,1736428254541,-509.04869692,0.00010271,2]
[348269941,1736428254550,-500.0,0.00010271,2]
[348269942,1736428254560,-500.0,0.00010271,2]
[348269943,1736428254569,-500.0,0.00010271,2]
[348269944,1736428254578,-500.0,0.00010271,2]
[348269945,1736428254587,-210.79,0.00010271,2]
[348269946,1736428254598,-500.0,0.00010271,2]
[348269947,1736428254607,-500.0,0.00010271,2]
[348269948,1736428254617,-500.0,0.00010271,2]
[348269949,1736428254626,-506.97974662,0.00010271,2]
[348269950,1736428254635,-500.0,0.00010271,2]
[348269951,1736428254644,-500.0,0.00010271,2]
[348269952,1736428254654,-500.0,0.00010271,2]
[348269953,1736428254664,-500.0,0.00010271,2]
[348269954,1736428254673,-500.0,0.00010271,2]
[348269955,1736428254683,-500.0,0.00010271,2]
[348269956,1736428254692,-500.0,0.00010271,2]
[348269957,1736428254701,-500.0,0.00010271,2]
[348269958,1736428254712,-500.0,0.00010271,2]
[348269959,1736428254723,-500.0,0.00010271,2]
[348269960,1736428254732,-500.0,0.00010271,2]
[348269961,1736428254741,-1214.85,0.00010271,2]
[348269962,1736428254751,-500.0,0.00010271,2]
[348269963,1736428254760,-500.0,0.00010271,2]
[348269964,1736428254769,-500.0,0.00010271,2]
[348269965,1736428254779,-500.0,0.00010271,2]
[348269966,1736428254788,-500.0,0.00010271,2]
[348269967,1736428254797,-500.0,0.00010271,2]
[348269968,1736428254806,-500.0,0.00010271,2]
[348269969,1736428254815,-500.0,0.00010271,2]
[348269970,1736428254824,-500.0,0.00010271,2]
[348269971,1736428254833,-500.0,0.00010271,2]
[348269972,1736428254844,-500.0,0.00010271,2]
[348269973,1736428254853,-500.0,0.00010271,2]
[348269974,1736428254862,-500.0,0.00010271,2]
[348269975,1736428254871,-622.74,0.00010271,2]
[348269976,1736428254880,-500.0,0.00010271,2]
[348269977,1736428254889,-500.0,0.00010271,2]
[348269978,1736428254898,-500.0,0.00010271,2]
[348269979,1736428254907,-500.0,0.00010271,2]
[348269980,1736428254916,-500.0,0.00010271,2]
[348269981,1736428254925,-500.0,0.00010271,2]
[348269982,1736428254934,-500.0,0.00010271,2]
[348269983,1736428254943,-500.0,0.00010271,2]
[348269984,1736428254952,-500.0,0.00010271,2]
[348269985,1736428254961,-618.35,0.00010271,2]
[348269986,1736428254971,-500.0,0.00010271,2]
[348269987,1736428254980,-500.0,0.00010271,2]
[348269988,1736428254989,-500.0,0.00010271,2]
[348269989,1736428254999,-500.0,0.00010271,2]
[348269990,1736428255009,-500.0,0.00010271,2]
[348269991,1736428255019,-500.0,0.00010271,2]
[348269992,1736428255028,-604.49,0.00010271,2]
[348269993,1736428255039,-500.0,0.00010271,2]
[348269994,1736428255049,-511.03879196,0.00010271,2]
[348269995,1736428255061,-500.0,0.00010271,2]
[348269996,1736428255071,-549.37,0.00010271,2]
[348269997,1736428255082,-500.0,0.00010271,2]
[348269998,1736428255092,-500.0,0.00010271,2]
[348269999,1736428255101,-516.79,0.00010271,2]
[348270000,1736428255111,-500.0,0.00010271,2]
[348270001,1736428255120,-500.0,0.00010271,2]
[348270002,1736428255129,-619.51,0.00010271,2]
[348270003,1736428255138,-500.0,0.00010271,2]
[348270004,1736428255147,-500.0,0.00010271,2]
[348270005,1736428255155,-500.0,0.00010271,2]
[348270006,1736428255166,-500.0,0.00010271,2]
[348270007,1736428255175,-500.0,0.00010271,2]
[348270008,1736428255184,-597.39,0.00010271,2]
[348270009,1736428255194,-500.0,0.00010271,2]
[348270010,1736428255203,-500.0,0.00010271,2]
[348270011,1736428255211,-500.0,0.00010271,2]
[348270012,1736428255221,-500.0,0.00010271,2]
[348270013,1736428255233,-500.0,0.00010271,2]
[348270014,1736428255242,-500.0,0.00010271,2]
[348270015,1736428255251,-589.06,0.00010271,2]
[348270016,1736428255260,-500.0,0.00010271,2]
[348270017,1736428255271,-585.78,0.00010271,2]
[348270018,1736428255279,-500.0,0.00010271,2]
[348270019,1736428255288,-556.47,0.00010271,2]
[348270020,1736428255298,-500.0,0.00010271,2]
[348270021,1736428255309,-500.0,0.00010271,2]
[348270022,1736428255319,-500.0,0.00010271,2]
[348270023,1736428255328,-500.0,0.00010271,2]
[348270024,1736428255337,-500.0,0.00010271,2]
[348270025,1736428255348,-500.0,0.00010271,2]
[348270026,1736428255357,-500.0,0.00010271,2]
[348270027,1736428255366,-500.0,0.00010271,2]
[348270028,1736428255377,-500.0,0.00010271,2]
[348270029,1736428255386,-500.0,0.00010271,2]
[348270030,1736428255396,-500.0,0.00010271,2]
[348270031,1736428255405,-500.0,0.00010271,2]
[348270032,1736428255414,-500.0,0.00010271,2]
[348270033,1736428255424,-500.0,0.00010271,2]
[348270034,1736428255433,-500.0,0.00010271,2]
[348270035,1736428255442,-500.0,0.00010271,2]
[348270036,1736428255451,-500.0,0.00010271,2]
[348270037,1736428255460,-500.0,0.00010271,2]
[348270038,1736428255470,-500.0,0.00010271,2]
[348270039,1736428255479,-500.0,0.00010271,2]
[348270040,1736428255489,-500.0,0.00010271,2]
[348270041,1736428255500,-500.0,0.00010271,2]
[348270042,1736428255511,-500.0,0.00010271,2]
[348270043,1736428255521,-500.0,0.00010271,2]
[348270044,1736428255532,-520.83,0.00010271,2]
[348270045,1736428255541,-500.0,0.00010271,2]
[348270046,1736428255550,-500.0,0.00010271,2]
[348270047,1736428255561,-500.0,0.00010271,2]
[348270048,1736428255572,-500.0,0.00010271,2]
[348270049,1736428255581,-500.0,0.00010271,2]
[348270050,1736428255590,-500.0,0.00010271,2]
[348270051,1736428255599,-612.42,0.00010271,2]
[348270052,1736428255609,-459.76,0.00010271,2]
[348270053,1736428255619,-586.05,0.00010271,2]
[348270054,1736428255629,-507.98,0.00010271,2]
[348270055,1736428255640,-500.0,0.00010271,2]
[348270056,1736428255649,-178.6919286,0.00010271,2]
[348270057,1736428255659,-500.0,0.00010271,2]
[348270058,1736428255668,-537.5,0.00010271,2]
[348270059,1736428255678,-500.0,0.00010271,2]
[348270060,1736428255687,-500.0,0.00010271,2]
[348270061,1736428255697,-500.0,0.00010271,2]
[348270062,1736428255706,-500.0,0.00010271,2]
[348270063,1736428255717,-500.0,0.00010271,2]
[348270064,1736428255727,-500.0,0.00010271,2]
[348270065,1736428255736,-500.0,0.00010271,2]
[348270066,1736428255746,-630.45,0.00010271,2]
[348270067,1736428255755,-500.0,0.00010271,2]
[348270068,1736428255764,-536.58,0.00010271,2]
[348270069,1736428255773,-557.62,0.00010271,2]
[348270070,1736428255783,-500.0,0.00010271,2]
[348270071,1736428255792,-544.31,0.00010271,2]
[348270072,1736428255801,-500.0,0.00010271,2]
[348270073,1736428255811,-539.87,0.00010271,2]
[348270074,1736428255821,-520.83,0.00010271,2]
[348270075,1736428255830,-504.53,0.00010271,2]
[348270076,1736428255841,-500.0,0.00010271,2]
[348270077,1736428255850,-500.0,0.00010271,2]
[348270078,1736428255860,-500.0,0.00010271,2]
[348270079,1736428255871,-500.0,0.00010271,2]
[348270080,1736428255880,-500.0,0.00010271,2]
[348270081,1736428255890,-500.0,0.00010271,2]
[348270082,1736428255899,-500.0,0.00010271,2]
[348270083,1736428255908,-500.0,0.00010271,2]
[348270084,1736428255917,-500.0,0.00010271,2]
[348270085,1736428255927,-500.0,0.00010271,2]
[348270086,1736428255936,-500.0,0.00010271,2]
[348270087,1736428255946,-927.5,0.00010271,2]
[348270088,1736428255955,-184.93,0.00010271,2]
[348270089,1736428255965,-637.56,0.00010271,2]
[348270090,1736428255974,-500.0,0.00010271,2]
[348270091,1736428255983,-500.0,0.00010271,2]
[348270092,1736428255992,-500.0,0.00010271,2]
[348270093,1736428256002,-500.0,0.00010271,2]
[348270094,1736428256013,-500.0,0.00010271,2]
[348270095,1736428256022,-500.0,0.00010271,2]
[348270096,1736428256032,-500.0,0.00010271,2]
[348270097,1736428256042,-500.0,0.00010271,2]
[348270098,1736428256051,-500.0,0.00010271,2]
[348270099,1736428256060,-196.04,0.00010271,2]
[348270100,1736428256070,-500.0,0.00010271,2]
[348270101,1736428256080,-636.73,0.00010272,2]
[348270102,1736428256089,-630.69,0.00010272,2]
[348270103,1736428256100,-1241.77,0.00010272,2]
[348270104,1736428256111,-500.0,0.00010272,2]
[348270105,1736428256121,-500.0,0.00010272,2]
[348270106,1736428256130,-554.43,0.00010272,2]
[348270107,1736428256140,-301.88,0.00010272,2]
[348270108,1736428256149,-1491.3,0.00010272,2]
[348270109,1736428256158,-500.0,0.00010272,2]
[348270110,1736428256168,-203.7,0.00010272,2]
[348270111,1736428256177,-500.0,0.00010272,2]
[348270112,1736428256186,-500.0,0.00010272,2]
[348270113,1736428256195,-462.0,0.00010272,2]
[348270114,1736428256204,-500.0,0.00010272,2]
[348270115,1736428256214,-500.0,0.00010272,2]
[348270116,1736428256223,-628.35,0.00010272,2]
[348270117,1736428256236,-500.0,0.00010272,2]
[348270118,1736428256245,-500.0,0.00010272,2]
[348270119,1736428256255,-541.66,0.00010272,2]
[348270120,1736428256264,-500.0,0.00010272,2]
[348270121,1736428256275,-500.0,0.00010272,2]
[348270122,1736428256284,-651.26,0.00010272,2]
[348270123,1736428256294,-315.17,0.00010272,2]
[348270124,1736428256305,-500.0,0.00010272,2]
[348270125,1736428256315,-500.0,0.00010272,2]
[348270126,1736428256325,-568.66,0.00010272,2]
[348270127,1736428256335,-500.0,0.00010272,2]
[348270128,1736428256347,-500.0,0.00010272,2]
[348270129,1736428256357,-500.0,0.00010272,2]
[348270130,1736428256366,-500.0,0.00010272,2]
[348270131,1736428256375,-500.0,0.00010272,2]
[348270132,1736428256384,-559.56,0.00010272,2]
[348270133,1736428256393,-500.0,0.00010272,2]
[348270134,1736428256403,-500.0,0.00010272,2]
[348270135,1736428256412,-500.0,0.00010272,2]
[348270136,1736428256421,-500.0,0.00010272,2]
[348270137,1736428256430,-500.0,0.00010272,2]
[348270138,1736428256439,-500.0,0.00010272,2]
[348270139,1736428256449,-500.0,0.00010272,2]
[348270140,1736428256458,-527.58,0.00010272,2]
[348270141,1736428256467,-500.0,0.00010272,2]
[348270142,1736428256477,-500.0,0.00010272,2]
[348270143,1736428256486,-500.0,0.00010272,2]
[348270144,1736428256495,-500.0,0.00010272,2]
[348270145,1736428256504,-500.0,0.00010272,2]
[348270146,1736428256513,-500.0,0.00010272,2]
[348270147,1736428256523,-500.0,0.00010272,2]
[348270148,1736428256532,-527.22558608,0.00010272,2]
[348270149,1736428256542,-500.0,0.00010272,2]
[348270150,1736428256551,-500.0,0.00010272,2]
[348270151,1736428256561,-581.59,0.00010272,2]
[348270152,1736428256570,-500.0,0.00010272,2]
[348270153,1736428256579,-1611.11,0.00010272,2]
[348270154,1736428256589,-602.08,0.00010272,2]
[348270155,1736428256599,-557.61,0.00010272,2]
[348270156,1736428256608,-500.0,0.00010272,2]
[348270157,1736428256618,-500.0,0.00010272,2]
[348270158,1736428256627,-500.0,0.00010272,2]
[348270159,1736428256637,-500.0,0.00010272,2]
[348270160,1736428256648,-500.0,0.00010272,2]
[348270161,1736428256657,-500.0,0.00010272,2]
[348270162,1736428256667,-500.0,0.00010272,2]
[348270163,1736428256676,-500.0,0.00010272,2]
[348270164,1736428256686,-500.0,0.00010273,2]
[348270165,1736428256695,-500.0,0.00010273,2]
[348270166,1736428256705,-500.0,0.00010273,2]
[348270167,1736428256715,-500.0,0.00010273,2]
[348270168,1736428256725,-1000.0,0.00010273,2]
[348270169,1736428256734,-500.0,0.00010273,2]
[348270170,1736428256744,-500.0,0.00010273,2]
[348270171,1736428256754,-500.0,0.00010273,2]
[348270172,1736428256764,-500.0,0.00010273,2]
[348270173,1736428256773,-500.0,0.00010273,2]
[348270174,1736428256783,-563.22,0.00010401,2]
[348270175,1736428256793,-418.09,0.00010531,2]
[348270176,1736428256803,-500.0,0.00010541,2]
[348270177,1736428256813,-500.0,0.00010541,2]
[348270178,1736428256823,-500.0,0.00010541,2]
[348270179,1736428256832,-500.0,0.00010541,2]
[348270180,1736428256842,-500.0,0.00010541,2]
[348270181,1736428256855,-500.0,0.00010541,2]
[348270182,1736428256864,-500.0,0.00010541,2]
[348270183,1736428256874,-500.0,0.00010541,2]
[348270184,1736428256884,-500.0,0.00010541,2]
[348270185,1736428256894,-300.0,0.00010541,2]
[348270186,1736428256904,-500.0,0.00010541,2]
[348270187,1736428256914,-502.69260174,0.00010541,2]
[348270188,1736428256924,-500.0,0.00010541,2]
[348270189,1736428256933,-500.0,0.00010541,2]
[348270190,1736428256943,-500.0,0.00010541,2]
[348270191,1736428256952,-500.0,0.00010541,2]
[348270192,1736428256962,-500.0,0.00010541,2]
[348270193,1736428256971,-500.0,0.00010541,2]
[348270194,1736428256980,-500.0,0.00010541,2]
[348270195,1736428256989,-500.0,0.00010541,2]
[348270196,1736428256999,-500.0,0.00010541,2]
[348270197,1736428257008,-500.0,0.00010541,2]
[348270198,1736428257018,-500.0,0.00010541,2]
[348270199,1736428257028,-500.0,0.00010544,2]
[348270200,1736428257038,-500.0,0.00010544,2]
[348270201,1736428257048,-500.0,0.00010544,2]
[348270202,1736428257058,-676.46,0.00010544,2]
[348270203,1736428257068,-1305.89,0.00010544,2]
[348270204,1736428257077,-500.0,0.00010544,2]
[348270205,1736428257089,-509.37,0.00010544,2]
[348270206,1736428257100,-500.0,0.00010544,2]
[348270207,1736428257110,-169.15,0.00010544,2]
[348270208,1736428257120,-500.0,0.00010544,2]
[348270209,1736428257129,-637.62,0.00010544,2]
[348270210,1736428257139,-500.0,0.00010544,2]
[348270211,1736428257150,-500.0,0.00010544,2]
[348270212,1736428257160,-500.0,0.00010544,2]
[348270213,1736428257170,-712.63,0.00010544,2]
[348270214,1736428257179,-514.69,0.00010544,2]
[348270215,1736428257189,-432.92,0.00010544,2]
[348270216,1736428257199,-213.2,0.00010544,2]
[348270217,1736428257210,-500.0,0.00010544,2]
[348270218,1736428257219,-1109.65,0.00010544,2]
[348270219,1736428257234,-261.79830738,0.00010544,2]
[348270220,1736428257245,-395.28,0.00010544,2]
[348270221,1736428257254,-500.0,0.00010544,2]
[348270222,1736428257264,-500.0,0.00010544,2]
[348270223,1736428257274,-967.77,0.00010544,2]
[348270224,1736428257284,-841.11,0.00010544,2]
[348270225,1736428257294,-500.0,0.00010544,2]
[348270226,1736428257304,-500.0,0.00010544,2]
[348270227,1736428257314,-500.0,0.00010544,2]
[348270228,1736428257324,-500.0,0.00010544,2]
[348270229,1736428257335,-829.69,0.00010544,2]
[348270230,1736428257347,-777.57,0.00010544,2]
[348270231,1736428257357,-514.78,0.00010544,2]
[348270232,1736428257367,-500.0,0.00010544,2]
[348270233,1736428257377,-500.0,0.00010544,2]
[348270234,1736428257387,-2745.65,0.00010544,2]
[348270235,1736428257396,-500.0,0.00010544,2]
[348270236,1736428257406,-500.0,0.00010544,2]
[348270237,1736428257416,-500.0,0.00010545,2]
[348270238,1736428257426,-664.97,0.00010545,2]
[348270239,1736428257436,-567.82,0.00010545,2]
[348270240,1736428257447,-633.45,0.00010545,2]
[348270241,1736428257457,-500.0,0.00010545,2]
[348270242,1736428257466,-500.0,0.00010545,2]
[348270243,1736428257476,-500.0,0.00010545,2]
[348270244,1736428257486,-500.0,0.00010545,2]
[348270245,1736428257495,-500.0,0.00010545,2]
[348270246,1736428257505,-500.0,0.00010545,2]
[348270247,1736428257515,-500.0,0.00010545,2]
[348270248,1736428257526,-561.63,0.00010545,2]
[348270249,1736428257536,-500.0,0.00010545,2]
[348270250,1736428257545,-500.0,0.00010545,2]
[348270251,1736428257555,-256.18,0.00010545,2]
[348270252,1736428257564,-500.0,0.00010545,2]
[348270253,1736428257574,-500.0,0.00010545,2]
[348270254,1736428257584,-500.0,0.00010545,2]
[348270255,1736428257595,-500.0,0.00010545,2]
[348270256,1736428257605,-353.85,0.00010545,2]
[348270257,1736428257614,-151.9,0.00010545,2]
[348270258,1736428257624,-411.0,0.00010545,2]
[348270259,1736428257634,-500.0,0.00010545,2]
[348270260,1736428257643,-500.0,0.00010545,2]
[348270261,1736428257653,-993.02,0.00010545,2]
[348270262,1736428257663,-500.0,0.00010545,2]
[348270263,1736428257673,-500.0,0.00010545,2]
[348270264,1736428257683,-393.69,0.00010545,2]
[348270265,1736428257693,-500.0,0.00010545,2]
[348270266,1736428257703,-500.0,0.00010545,2]
[348270267,1736428257713,-500.0,0.00010545,2]
[348270268,1736428257722,-161.69,0.00010545,2]
[348270269,1736428257732,-192.45,0.00010545,2]
[348270270,1736428257741,-429.46,0.00010545,2]
[348270271,1736428257751,-500.0,0.00010545,2]
[348270272,1736428257761,-500.0,0.00010545,2]
[348270273,1736428257770,-500.0,0.00010545,2]
[348270274,1736428257779,-382.99,0.00010545,2]
[348270275,1736428257789,-486.82,0.00010545,2]
[348270276,1736428257799,-759.66,0.00010545,2]
[348270277,1736428257808,-759.66,0.00010545,2]
[348270278,1736428257819,-500.0,0.00010545,2]
[348270279,1736428257829,-470.2,0.00010545,2]
[348270280,1736428257839,-540.95718,0.00010545,2]
[348270281,1736428257851,-500.0,0.00010545,2]
[348270282,1736428257861,-500.0,0.00010545,2]
[348270283,1736428257871,-405.4,0.00010545,2]
[348270284,1736428257881,-500.0,0.00010545,2]
[348270285,1736428257890,-675.372354,0.00010545,2]
[348270286,1736428257899,-500.0,0.00010545,2]
[348270287,1736428257909,-252.84,0.00010545,2]
[348270288,1736428257919,-500.0,0.00010545,2]
[348270289,1736428257930,-500.0,0.00010545,2]
[348270290,1736428257941,-597.21,0.00010545,2]
[348270291,1736428257951,-500.0,0.00010545,2]
[348270292,1736428257961,-556.18,0.00010545,2]
[348270293,1736428257971,-500.0,0.00010545,2]
[348270294,1736428257983,-500.0,0.00010545,2]
[348270295,1736428257992,-500.0,0.00010545,2]
[348270296,1736428258002,-304.5,0.00010545,2]
[348270297,1736428258011,-500.0,0.00010545,2]
[348270298,1736428258020,-500.0,0.00010545,2]
[348270299,1736428258030,-500.0,0.00010545,2]
[348270300,1736428258039,-500.0,0.00010545,2]
[348270301,1736428258049,-500.0,0.00010545,2]
[348270302,1736428258059,-500.0,0.00010545,2]
[348270303,1736428258068,-500.0,0.00010545,2]
[348270304,1736428258078,-500.0,0.00010545,2]
[348270305,1736428258089,-1214.85,0.00010545,2]
[348270306,1736428258100,-500.0,0.00010545,2]
[348270307,1736428258110,-500.0,0.00010545,2]
[348270308,1736428258119,-405.23,0.00010545,2]
[348270309,1736428258128,-500.0,0.00010545,2]
[348270310,1736428258138,-309.89,0.00010545,2]
[348270311,1736428258147,-595.14,0.00010545,2]
[348270312,1736428258157,-318.93,0.00010545,2]
[348270313,1736428258166,-192.2,0.00010545,2]
[348270314,1736428258176,-500.0,0.00010545,2]
[348270315,1736428258186,-500.0,0.00010545,2]
[348270316,1736428258196,-468.77,0.00010545,2]
[348270317,1736428258206,-499.88,0.00010545,2]
[348270318,1736428258218,-500.0,0.00010545,2]
[348270319,1736428258231,-351.54,0.00010545,2]
[348270320,1736428258241,-263.17,0.00010545,2]
[348270321,1736428258251,-500.0,0.00010545,2]
[348270322,1736428258260,-500.0,0.00010545,2]
[348270323,1736428258271,-320.33,0.00010545,2]
[348270324,1736428258280,-157.22,0.00010545,2]
[348270325,1736428258290,-500.0,0.00010545,2]
[348270326,1736428258300,-500.0,0.00010545,2]
[348270327,1736428258312,-500.0,0.00010545,2]
[348270328,1736428258323,-285.33,0.00010545,2]
[348270329,1736428258333,-500.0,0.00010545,2]
[348270330,1736428258343,-500.0,0.00010545,2]
[348270331,1736428258354,-500.0,0.00010545,2]
[348270332,1736428258364,-597.26,0.00010545,2]
[348270333,1736428258374,-301.92,0.00010545,2]
[348270334,1736428258384,-493.66,0.00010545,2]
[348270335,1736428258394,-380.09,0.00010545,2]
[348270336,1736428258404,-189.25,0.00010545,2]
[348270337,1736428258414,-174.38,0.00010545,2]
[348270338,1736428258424,-500.0,0.00010545,2]
[348270339,1736428258434,-507.98,0.00010545,2]
[348270340,1736428258444,-410.8,0.00010545,2]
[348270341,1736428258454,-200.03,0.00010545,2]
[348270342,1736428258464,-585.21,0.00010545,2]
[348270343,1736428258474,-597.94,0.00010545,2]
[348270344,1736428258485,-500.0,0.00010545,2]
[348270345,1736428258496,-216.0,0.00010545,2]
[348270346,1736428258506,-539.87,0.00010545,2]
[348270347,1736428258516,-392.87,0.00010545,2]
[348270348,1736428258526,-500.0,0.00010545,2]
[348270349,1736428258536,-527.44,0.00010545,2]
[348270350,1736428258546,-500.0,0.00010545,2]
[348270351,1736428258557,-500.0,0.00010545,2]
[348270352,1736428258567,-500.0,0.00010545,2]
[348270353,1736428258578,-927.5,0.00010545,2]
[348270354,1736428258587,-500.0,0.00010545,2]
[348270355,1736428258599,-478.68,0.00010545,2]
[348270356,1736428258608,-500.0,0.00010545,2]
[348270357,1736428258619,-500.0,0.00010545,2]
[348270358,1736428258628,-500.0,0.00010545,2]
[348270359,1736428258638,-500.0,0.00010545,2]
[348270360,1736428258648,-636.73,0.00010546,2]
[348270361,1736428258658,-630.69,0.00010546,2]
[348270362,1736428258668,-1241.77,0.00010546,2]
[348270363,1736428258678,-554.43,0.00010546,2]
[348270364,1736428258688,-1491.3,0.00010546,2]
[348270365,1736428258698,-500.0,0.00010546,2]
[348270366,1736428258708,-500.0,0.00010546,2]
[348270367,1736428258719,-500.0,0.00010546,2]
[348270368,1736428258729,-504.21,0.00010546,2]
[348270369,1736428258739,-500.0,0.00010546,2]
[348270370,1736428258750,-500.0,0.00010546,2]
[348270371,1736428258760,-651.26,0.00010546,2]
[348270372,1736428258770,-500.0,0.00010546,2]
[348270373,1736428258780,-338.92,0.00010546,2]
[348270374,1736428258791,-328.0,0.00010546,2]
[348270375,1736428258802,-500.0,0.00010546,2]
[348270376,1736428258812,-500.0,0.00010546,2]
[348270377,1736428258822,-500.0,0.00010546,2]
[348270378,1736428258994,-367.69,0.00010546,2]
[348270379,1736428259004,-420.03,0.00010546,2]
[348270380,1736428259015,-308.01,0.00010546,2]
[348270381,1736428259028,-500.0,0.00010546,2]
[348270382,1736428259038,-410.66,0.00010546,2]
[348270383,1736428259049,-193.00384102,0.00010546,2]
[348270384,1736428259059,-500.0,0.00010546,2]
[348270385,1736428259069,-500.0,0.00010546,2]
[348270386,1736428259078,-500.0,0.00010546,2]
[348270387,1736428259088,-1611.11,0.00010546,2]
[348270388,1736428259099,-602.08,0.00010546,2]
[348270389,1736428259108,-557.61,0.00010546,2]
[348270390,1736428259118,-500.0,0.00010546,2]
[348270391,1736428259128,-500.0,0.00010546,2]
[348270392,1736428259137,-500.0,0.00010546,2]
[348270393,1736428259148,-500.0,0.00010546,2]
[348270394,1736428259159,-380.15,0.00010546,2]
[348270395,1736428259169,-272.33,0.00010546,2]
[348270396,1736428259178,-500.0,0.00010546,2]
[348270397,1736428259188,-500.0,0.00010547,2]
[348270398,1736428259197,-500.0,0.00010547,2]
[348270399,1736428259206,-500.0,0.00010547,2]
[348270400,1736428259216,-500.0,0.00010547,2]
[348270401,1736428259227,-500.0,0.00010547,2]
[348270402,1736428259240,-500.0,0.00010547,2]
[348270403,1736428259250,-500.0,0.00010547,2]
[348270404,1736428259260,-437.08,0.00010658,2]
[348270405,1736428259270,-437.08,0.00010658,2]
[348270406,1736428259280,-437.08,0.00010658,2]
[348270407,1736428259289,-300.57184681,0.00010815,2]
[348270408,1736428259300,-690.86,0.00010815,2]
[348270409,1736428259311,-500.0,0.00010818,2]
[348270410,1736428259321,-500.0,0.00010818,2]
[348270411,1736428259331,-676.46,0.00010818,2]
[348270412,1736428259340,-1305.89,0.00010818,2]
[348270413,1736428259351,-500.0,0.00010818,2]
[348270414,1736428259361,-500.0,0.00010818,2]
[348270415,1736428259371,-500.0,0.00010818,2]
[348270416,1736428259380,-637.62,0.00010818,2]
[348270417,1736428259390,-500.0,0.00010818,2]
[348270418,1736428259399,-500.0,0.00010818,2]
[348270419,1736428259410,-500.0,0.00010818,2]
[348270420,1736428259420,-712.63,0.00010818,2]